Cogmind - Beta 16.1 @@@ ROGUE MODE // 2026.01.04 @ 13:37:27 Player: Minty Result: Destroyed by P-70 Sage with High-powered Shock Rifle Performance ------------- Evolutions (6) 3000 Regions Visited (18) 3600 Robots Destroyed (142) 710 Value Destroyed (7184) 7184 Prototype IDs (34) 680 Alien Tech Used (0) 0 Bonus (4834) 4834 TOTAL SCORE: 20008 Bonus ------- High Alert Combat Kills 1311 Follower Combat Kills 223 Entered Garrisons 600 Used RIF Installer 1000 Network Hubs Disabled 800 Aligned with FarCom 300 Met Zhirov 300 Read Decrypted Archives 300 Cogmind --------- Core Integrity 0/1150 Matter 282/300 Energy 99/100 System Corruption 1% Temperature Cool (0) Movement Core (50) Location -4/Factory Parts ------- > --- POWER (2) -------- (None) > --- PROPULSION (7) --- (None) > --- UTILITY (7) ------ Improved Signal Interpreter Advanced Salvage Targeting Computer Relay Coupler [Hunter] (19) > --- WEAPON (3) ------- (None) > --- INVENTORY (5) ---- Disruptor Cannon Firepult Improved Remote Datajack Peak State ------------ > --- POWER ------------ F-cell Engine > --- PROPULSION ------- VTOL Module Cooled VTOL Module Cooled VTOL Module Cooled VTOL Module Cooled VTOL Module Cooled VTOL Module > --- UTILITY ---------- Improved Heat Sink Medium Storage Unit Gravity Neutralizer Advanced Salvage Targeting Computer Improved Armor Integrity Analyzer System Shield Relay Coupler [NC] > --- WEAPON ----------- Railgun Railgun Improved Remote Datajack > --- INVENTORY -------- F-cell Engine F-cell Engine Advanced ECM Suite Relay Coupler [Swarmer] Relay Coupler [Hunter] Firepult Remote Datajack Remote Datajack [Rating: 85] Favorites ----------- Power Enhanced Nuclear Core Engine Improved Deuterium Engine Power Core Enhanced Nuclear Core Propulsion Cooled VTOL Module Treads Medium Treads Leg Carbon-fiber Leg Wheel Wheel Hover Unit Linear Gravjet Flight Unit Cooled VTOL Module Utility Heat Sink Device Heat Sink Storage Medium Storage Unit Processor Advanced Salvage Targeting Computer Hackware Relay Coupler [NC] Protection Layered Medium Armor Plating Weapon Thermic Laser Energy Gun Thermic Laser Energy Cannon Heavy Plasma Cannon Ballistic Gun Railgun Launcher Missile Launcher Special Weapon Remote Datajack Special Melee Weapon Datajack Build | -11 -10 -10 -10 -9 -8 -8 -7 -7 -6 -6 -6 -6 -5 -5 -5 -5 -5 -4 ------- Run | Yrd Mat Min Exi Min Mat Gar Fac Sto Fac Gar Fac Gar Fac Ext Cet Arc Hub Fac Slots Evolved 12 | . . . . . 4 . 2 . 2 . . . 2 . . . . 2 Power 1 | . . . . . . . . . . . . . . . . . . 1 Propulsion 5 | . . . . . 1 . 1 . 2 . . . . . . . . 1 Utility 5 | . . . . . 2 . 1 . . . . . 2 . . . . . Weapon 1 | . . . . . 1 . . . . . . . . . . . . . Parts Attached 137 | . 4 9 . . 9 34 27 19 8 3 3 3 2 6 1 . 4 5 Power 15 | . . 3 . . . 4 5 . . . 1 . . 1 . . 1 . Engine 10 | . . 3 . . . 3 1 . . . 1 . . 1 . . 1 . Core 5 | . . . . . . 1 4 . . . . . . . . . . . Reactor . | . . . . . . . . . . . . . . . . . . . Propulsion 30 | . . 2 . . 4 5 6 5 5 . . 1 . . . . . 2 Treads 9 | . . . . . . 2 2 4 . . . . . . . . . 1 Leg 12 | . . 2 . . 3 3 4 . . . . . . . . . . . Wheel 1 | . . . . . 1 . . . . . . . . . . . . . Hover 1 | . . . . . . . . . . . . . . . . . . 1 Flight 7 | . . . . . . . . 1 5 . . 1 . . . . . . Utility 49 | . 2 2 . . 2 12 8 8 3 . 1 2 2 2 1 . 1 3 Device 25 | . 1 2 . . 2 8 3 3 2 . 1 . . 1 1 . 1 . Storage 3 | . . . . . . 2 . 1 . . . . . . . . . . Processor 7 | . 1 . . . . 1 1 . 1 . . 2 . . . . . 1 Hackware 9 | . . . . . . . 3 1 . . . . 2 1 . . . 2 Protection 5 | . . . . . . 1 1 3 . . . . . . . . . . Artifact . | . . . . . . . . . . . . . . . . . . . Weapon 43 | . 2 2 . . 3 13 8 6 . 3 1 . . 3 . . 2 . Energy Gun 20 | . 1 2 . . 3 4 4 5 . . 1 . . . . . . . Energy Cannon 7 | . . . . . . 2 3 . . . . . . . . . 2 . Ballistic Gun 6 | . . . . . . 2 . . . 3 . . . 1 . . . . Ballistic Cannon . | . . . . . . . . . . . . . . . . . . . Launcher 6 | . 1 . . . . 5 . . . . . . . . . . . . Special Weapon 3 | . . . . . . . . 1 . . . . . 2 . . . . Impact Weapon . | . . . . . . . . . . . . . . . . . . . Slashing Weapon . | . . . . . . . . . . . . . . . . . . . Piercing Weapon . | . . . . . . . . . . . . . . . . . . . Special Melee Weapon 1 | . . . . . . . 1 . . . . . . . . . . . Unidentified Prototypes 9 | . . . . . . . 2 3 1 . 2 . . . . . 1 . Corrupted Parts 2 | . . . . . . . 1 1 . . . . . . . . . . System Corruption 13 | . . . . . . . 10 3 . . . . . . . . . . Parts Lost 48 | . . 1 . . 1 16 5 4 . . . . 1 6 2 . 2 10 Power 6 | . . 1 . . . 3 . . . . . . . 1 . . . 1 Propulsion 14 | . . . . . . 4 1 . . . . . 1 1 1 . 1 5 Utility 16 | . . . . . . 4 2 2 . . . . . 2 1 . 1 4 Weapon 12 | . . . . . 1 5 2 2 . . . . . 2 . . . . Highest Loss Streak 5 | . . 1 . . 1 4 4 1 . . . . 1 5 2 . 2 3 To Critical Strikes 1 | . . . . . . . 1 . . . . . . . . . . . Average Backups 5 | . 6 6 6 6 5 5 4 6 3 4 6 8 8 8 6 4 3 3 Power . | . 1 . . . . . . 1 1 1 1 3 2 1 1 1 . . Propulsion . | . 4 3 3 3 2 . . 1 . . . . . . . . . . Utility 1 | . . . 1 1 . 3 1 1 . . . . 2 3 2 1 . . Weapon 1 | . 1 2 2 2 2 1 1 3 1 2 4 2 1 1 1 1 1 2 Tool/Special . | . . . . . . . . . . . . . . . . . . . Unused Backups 19 | . 5 2 1 . . 6 . 1 . . 1 1 . . 1 . . 1 Power 4 | . 1 1 . . . . . . . . 1 1 . . . . . . Propulsion 6 | . 2 1 . . . 3 . . . . . . . . . . . . Utility 5 | . 1 . . . . 3 . . . . . . . . 1 . . . Weapon 3 | . 1 . 1 . . . . . . . . . . . . . . 1 Tool/Special 1 | . . . . . . . . 1 . . . . . . . . . . Average Slot Usage (%) 89 | . 97 100 100 100 85 92 94 98 95 91 90 91 83 95 67 58 56 30 Engine 5 | . 14 14 14 14 9 6 2 . . . . 6 5 5 5 5 5 1 Core 1 | . . . . . . . 4 7 6 6 5 . . . . . . . Treads 4 | . . . . . . 2 8 24 1 . . . . . . . . . Leg 15 | . 28 28 28 28 24 19 19 5 . . . . . . . . . . Flight 5 | . . . . . . . . . 34 40 40 40 32 33 28 23 21 5 Device 12 | . 3 14 14 14 17 18 5 14 13 13 13 13 11 10 4 5 5 . Storage 10 | . 14 14 14 14 9 13 9 7 . 6 6 6 5 5 4 . . . Processor 1 | . 7 . . . . . . 3 5 . . 4 11 8 5 5 5 5 Hackware 3 | . . . . . . . 8 1 6 6 6 4 6 13 17 17 17 15 Protection 3 | . . . . . . 1 8 9 6 6 6 . . . . . . . Energy Gun 13 | . 27 27 28 28 24 11 7 21 13 6 . . . . . . . . Energy Cannon 2 | . . . . . . 1 11 . . . . . . . . . . . Ballistic Gun 1 | . . . . . . . . . . 5 9 13 8 10 . . . . Launcher 3 | . . . . . . 9 . . . . . . . . . . . . Peak Build Rating 85 | . 8 11 13 13 28 43 56 56 67 75 76 79 83 85 67 46 52 50 Average Rating 36 | . 7 10 11 13 21 31 44 52 64 60 66 72 73 79 53 46 46 28 On Entrance 39 | 7 7 8 11 13 13 28 37 55 51 62 56 67 75 79 49 46 46 39 Avg Prop Armor Cover (%) 6 | . . . . . 9 5 6 . . . . 1 . . 3 3 3 13 Naked Turns . | . . . . . . . . . . . . . . . . . . . Heaviest Build 68 | 14 15 19 19 19 24 54 68 56 29 40 40 41 35 39 24 13 13 12 Greatest Support 112 | 20 20 20 20 20 24 42 75 112 42 42 42 51 41 51 24 14 14 10 Greatest Overweight (x) 2 | . . . . . 2 2 2 1 . . . 1 . . . . . 1 Average Overweight (x) . | . . . . . . . . . . . . . . . . . . . Largest Inventory Capacity 10 | . 8 8 8 8 8 10 10 10 10 10 10 10 10 10 10 5 5 5 Average Capacity 8 | . 8 8 8 8 8 9 10 10 5 10 10 10 10 10 8 5 5 5 Most Carried 10 | . 8 8 8 8 8 10 10 10 10 10 10 10 10 10 9 5 5 5 Average Carried 8 | . 7 7 7 8 7 9 9 9 5 7 8 9 9 9 7 5 4 4 Final Capacity 10 | 8 8 8 8 8 8 10 10 10 10 10 10 10 10 10 5 5 5 5 Final Carried 10 | 7 8 7 8 8 8 10 10 10 5 10 10 10 10 9 5 5 5 4 Class Distribution -------------------- 28% | Scavenger-Skirmisher 24% | Scavenger-Mutant 12% | Skirmisher 10% | Mutant 9% | Sprinter Dominant Class ---------------- Mutant | -10/Materials Scavenger-Mutant | -10/Mines Scavenger-Mutant | -10/Exiles Scavenger-Mutant | -9/Mines Skirmisher | -8/Materials Scavenger-Skirmisher | -8/Garrison Scavenger-Skirmisher | -7/Factory Skirmisher | -7/Storage Commander-Sprinter | -6/Factory Commander-Sprinter | -6/Garrison Sprinter | -6/Factory Sprinter | -6/Garrison Mutant | -5/Factory Sprinter | -5/Extension Sprinter | -5/Cetus Sprinter | -5/Archives Sprinter | -5/Hub_04(d) Mutant | -4/Factory Resources | -11 -10 -10 -10 -9 -8 -8 -7 -7 -6 -6 -6 -6 -5 -5 -5 -5 -5 -4 ----------- Run | Yrd Mat Min Exi Min Mat Gar Fac Sto Fac Gar Fac Gar Fac Ext Cet Arc Hub Fac Matter Collected 3539 | 200 30 190 . . 78 975 579 314 . . 239 334 98 161 60 . . 281 Remotely . | . . . . . . . . . . . . . . . . . . . Salvage Created 6173 | . 65 287 . . 155 1263 1349 1451 . . 253 140 316 161 60 . 39 634 Parts 266 | . 5 16 . . 8 51 48 77 . . 13 5 13 9 3 . 5 13 Haulers Intercepted 7 | . . . . . . . 1 4 . . 1 . 1 . . . . . Recyclers Shooed 2 | . . . . . . . 2 . . . . . . . . . . . Parts Field Recycled . | . . . . . . . . . . . . . . . . . . . Retrieved Matter . | . . . . . . . . . . . . . . . . . . . Parts Self-Destructed . | . . . . . . . . . . . . . . . . . . . Prevented . | . . . . . . . . . . . . . . . . . . . Parts Restored . | . . . . . . . . . . . . . . . . . . . Kills | -11 -10 -10 -10 -9 -8 -8 -7 -7 -6 -6 -6 -6 -5 -5 -5 -5 -5 -4 ------- Run | Yrd Mat Min Exi Min Mat Gar Fac Sto Fac Gar Fac Gar Fac Ext Cet Arc Hub Fac Combat Hostiles Destroyed 110 | . 6 10 . . 2 30 22 17 . . 4 1 4 2 1 . 1 10 Melee 1 | . . . . . . . . 1 . . . . . . . . . . Guns 46 | . 2 8 . . 2 13 2 12 . . 4 1 . 2 . . . . Cannons 7 | . . . . . . . 7 . . . . . . . . . . . AOE 31 | . 4 1 . . . 11 2 . . . . . 4 . . . 1 8 Classes Destroyed 16 | . 1 1 . . 3 4 6 . . . 1 . . . . . . . Worker 7 | . . . . . . . 4 . . . 1 . 1 . . . 1 . Builder 8 | . . . . . 1 . 2 2 . . . . 1 . . . . 2 Hauler 7 | . . . . . . . 1 4 . . 1 . 1 . . . . . Recycler 3 | . . . . . 1 . 1 1 . . . . . . . . . . Operator 1 | . . . . . . . 1 . . . . . . . . . . . Watcher 6 | . . . . . . . 2 2 . . . . . 1 . . . 1 Swarmer 19 | . 6 5 . . . 2 . 2 . . 3 . . . . . 1 . Cutter 2 | . . . . . . 2 . . . . . . . . . . . . Grunt 51 | . . 4 . . 1 15 13 6 . . . . 4 2 . . . 6 Brawler 2 | . . . . . . . 1 . . . . . . . . . . 1 Duelist 2 | . . . . . . . 1 . . . . . . . . . . 1 Sentry 17 | . . . . . . 5 3 8 . . . 1 . . . . . . Specialist 2 | . . . . . . 2 . . . . . . . . . . . . Hunter 10 | . . . . . 1 3 4 1 . . . . . . . . . 1 Programmer 2 | . . . . . . . . . . . 1 . . . . . . 1 Behemoth 1 | . . . . . . 1 . . . . . . . . . . . . Cetus Guard 1 | . . . . . . . . . . . . . . . 1 . . . Best Kill Streak 10 | . 6 3 . . 2 4 8 3 . . 2 1 7 2 1 . 2 10 Combat Bots Only 9 | . 6 3 . . 1 4 6 3 . . 2 1 3 2 1 . 1 9 Max Kills in Single Turn 7 | . 2 2 . . 1 3 2 2 . . 1 1 3 1 1 . 2 7 Gunslinging 1 | . . 1 . . . 1 . . . . . . . . . . . . Exploded 7 | . 2 1 . . . 3 1 . . . . . 3 . . . 1 7 Melee 1 | . . . . . . . . 1 . . . . . . . . . . Uniques/NPCs Destroyed 1 | . . 1 . . . . . . . . . . . . . . . . YI-UF0 (-10/Mines) Combat | -11 -10 -10 -10 -9 -8 -8 -7 -7 -6 -6 -6 -6 -5 -5 -5 -5 -5 -4 -------- Run | Yrd Mat Min Exi Min Mat Gar Fac Sto Fac Gar Fac Gar Fac Ext Cet Arc Hub Fac Hostile Shots Fired 838 | . 27 46 . . 41 104 148 177 9 9 21 37 9 36 19 . 16 139 Missed 330 | . 7 13 . . 16 30 61 76 4 4 11 17 4 15 6 . 8 58 Hits 508 | . 20 33 . . 25 74 87 101 5 5 10 20 5 21 13 . 8 81 Melee 4 | . . . . . . . 3 . . . . . . . . . . 1 Projectile 504 | . 20 33 . . 25 74 84 101 5 5 10 20 5 21 13 . 8 80 AOE 15 | . . 6 . . . 9 . . . . . . . . . . . . Critical Strikes 22 | . 1 1 . . . 5 4 . . . 1 . 2 1 2 . 2 3 Damage Taken 9116 | . 177 464 . . 383 1890 1356 901 33 33 180 424 107 453 642 . 257 1816 Core 2748 | . 37 106 . . 80 407 177 87 . . 39 71 28 69 384 . 99 1164 Absorbed by Shields . | . . . . . . . . . . . . . . . . . . . Ignored by Resistances 285 | . . . . . . . 158 127 . . . . . . . . . . Regen/Repaired (Parts) 84 | . . . . . . . . . . . 84 . . . . . . . Core Remaining (%) 57 | 100 . . . 42 . 11 . 62 . . . 87 . . . . 42 . Volleys Fired 286 | . 8 24 . 2 9 70 41 46 2 . 23 17 5 30 2 . 2 5 Largest 3 | . 2 2 . 2 3 3 3 3 2 . 3 3 2 2 1 . 1 1 Hottest 315 | . 100 112 . 112 182 286 315 167 105 . 105 105 285 70 250 . 81 250 Shots Fired 603 | . 13 45 . 4 20 164 101 114 4 . 43 38 10 38 2 . 2 5 Gun 446 | . 10 42 . 4 20 122 37 111 4 . 35 38 5 18 . . . . Cannon 80 | . . . . . . 6 59 3 . . . . 5 . 2 . 1 4 Launcher 47 | . 3 3 . . . 36 5 . . . . . . . . . . . Special 30 | . . . . . . . . . . . 8 . . 20 . . 1 1 Kinetic 91 | . . . . . . . . . . . 30 38 5 18 . . . . Thermal 318 | . 10 42 . 4 20 128 78 20 . . 5 . 5 . 2 . . 4 Explosive 47 | . 3 3 . . . 36 5 . . . . . . . . . . . Electromagnetic 117 | . . . . . . . 18 94 4 . . . . . . . 1 . Robot Hit Streak 23 | . 3 21 . 23 6 13 8 16 16 . 6 9 6 10 4 . 1 3 Robot Miss Streak 5 | . 2 3 . 2 3 3 5 4 1 . 3 2 4 2 2 . . 2 Penetration Max 1 | . . . . . . . . . . . 1 . . . . . . . Secondary Targets 9 | . . 1 . . 1 3 . 2 . . 1 . . 1 . . . . Max Gunslinging Chain 2 | . . 1 . . 1 2 . 1 . . 1 . . 1 . . . . Shots Hit Robots 366 | . 7 30 . 2 15 80 64 84 3 . 25 16 5 28 2 . 1 4 Core Hits 251 | . 6 14 . 1 12 51 55 41 . . 8 4 16 6 4 . 4 29 Critical Kills 2 | . . . . . . . 2 . . . . . . . . . . . Critical Parts Destroyed . | . . . . . . . . . . . . . . . . . . . Critical Strikes 22 | . . 3 . . . 12 3 3 . . 1 . . . . . . . Burn 17 | . . 3 . . . 12 1 . . . 1 . . . . . . . Meltdown 2 | . . . . . . . 2 . . . . . . . . . . . Corrupt 3 | . . . . . . . . 3 . . . . . . . . . . Melee Attacks 3 | . . . . . . . 3 . . . . . . . . . . . Impact . | . . . . . . . . . . . . . . . . . . . Slashing . | . . . . . . . . . . . . . . . . . . . Piercing . | . . . . . . . . . . . . . . . . . . . Sneak Attacks 2 | . . . . . . . 2 . . . . . . . . . . . Combat Hostiles . | . . . . . . . . . . . . . . . . . . . Follow-up Attacks . | . . . . . . . . . . . . . . . . . . . Damage Inflicted 13789 | . 224 569 . 28 327 2963 2654 1824 48 . 612 521 693 313 250 . 204 2559 Guns 5388 | . 75 423 . 28 233 1038 414 1742 48 . 612 440 22 313 . . . . Cannons 1393 | . . . . . . 87 1021 71 . . . . 51 . 47 . . 116 Explosions 6840 | . 149 138 . . 81 1835 1192 . . . . . 620 . 203 . 204 2418 Melee . | . . . . . . . . . . . . . . . . . . . Ramming 168 | . . 8 . . 13 3 27 11 . . . 81 . . . . . 25 Kinetic 1276 | . . . . . . . . . . . 501 440 22 313 . . . . Thermal 7061 | . 75 423 . 28 233 1344 1831 247 . . 111 . 302 . 250 . . 2217 Explosive 3208 | . 149 138 . . 81 1616 538 . . . . . 369 . . . . 317 Electromagnetic 2076 | . . . . . . . 258 1566 48 . . . . . . . 204 . Impact . | . . . . . . . . . . . . . . . . . . . Slashing . | . . . . . . . . . . . . . . . . . . . Piercing . | . . . . . . . . . . . . . . . . . . . Highest Corruption 30 | . . . . . . . 24 30 . . . 2 . . . . 1 1 Average Corruption 18 | . . . . . . . 14 27 . . . 2 . . . . 1 1 Corruption Purged . | . . . . . . . . . . . . . . . . . . . Corruption Blocked . | . . . . . . . . . . . . . . . . . . . Effects 95 | . . . . . . . 33 58 . . . 4 . . . . . . Message Errors 11 | . . . . . . . 7 3 . . . 1 . . . . . . Matter Fused 22 | . . . . . . . 8 14 . . . . . . . . . . Heat Flow Errors 10 | . . . . . . . 3 6 . . . 1 . . . . . . Energy Discharges 8 | . . . . . . . 5 3 . . . . . . . . . . Parts Rejected 2 | . . . . . . . 2 . . . . . . . . . . . Parts Fused 1 | . . . . . . . . . . . . 1 . . . . . . Data Loss (minor) 16 | . . . . . . . 5 11 . . . . . . . . . . Data Loss (major) 2 | . . . . . . . . 2 . . . . . . . . . . Misfires 2 | . . . . . . . 1 . . . . 1 . . . . . . Misdirections 2 | . . . . . . . 1 1 . . . . . . . . . . Weapon Failures 19 | . . . . . . . 1 18 . . . . . . . . . . Overload Shots 2 | . . . . . . . . . . . 2 . . . . . . . Overflow Damage 344 | . . . . . . 65 106 . . . . . 6 . . . 35 132 Projectiles 64 | . . . . . . . 64 . . . . . . . . . . . Explosions 280 | . . . . . . 65 42 . . . . . 6 . . . 35 132 Melee . | . . . . . . . . . . . . . . . . . . . Knockbacks 1 | . . . . . . . . . . . . 1 . . . . . . Impact 1 | . . . . . . . . . . . . 1 . . . . . . Kinetic . | . . . . . . . . . . . . . . . . . . . Secondary . | . . . . . . . . . . . . . . . . . . . Self-Inflicted Damage 965 | . 21 . . . 65 449 70 33 . . . 39 16 . 6 . 103 163 Shots 28 | . 1 . . . 1 15 2 1 . . . . 3 . 1 . 1 3 Rammed 14 | . . . . . . . 2 . . . . 8 . . . . . 4 Targets Rammed 20 | . . 1 . . 1 1 3 2 . . . 8 . . . . . 4 Kicked 4 | . . 1 . . 1 1 1 . . . . . . . . . . . Crushed 2 | . . . . . . . . 2 . . . . . . . . . . Highest Temperature 1266 | . 84 228 . 24 90 486 449 288 54 33 93 250 657 260 1266 . 30 1043 Average Temperature 139 | . 37 81 . 16 46 103 142 85 23 16 38 106 283 105 681 . 30 410 Received Heat Transfer 1961 | . . 114 . . . 288 369 345 6 6 81 78 81 156 36 . 109 292 Effects 37 | . . 1 . . . . 2 . . . . . 3 . 16 . . 15 Shutdowns 1 | . . . . . . . 1 . . . . . . . . . . . Energy Bleed 3 | . . 1 . . . . . . . . . . 1 . . . . 1 Interference 6 | . . . . . . . . . . . . . . . 5 . . 1 Matter Decay 3 | . . . . . . . . . . . . . 1 . 1 . . 1 Short Circuit 2 | . . . . . . . . . . . . . . . 1 . . 1 Damage (minor) 3 | . . . . . . . 1 . . . . . . . 2 . . . Damage (major) 17 | . . . . . . . . . . . . . 1 . 5 . . 11 Damage (core) 2 | . . . . . . . . . . . . . . . 2 . . . Siege Activations . | . . . . . . . . . . . . . . . . . . . Martial Activations . | . . . . . . . . . . . . . . . . . . . Shielding Activations . | . . . . . . . . . . . . . . . . . . . Robots Disrupted . | . . . . . . . . . . . . . . . . . . . Combat Hostiles . | . . . . . . . . . . . . . . . . . . . Robots Corrupted 5 | . . . . . . . . 5 . . . . . . . . . . Combat Hostiles 4 | . . . . . . . . 4 . . . . . . . . . . Parts Fried 16 | . . . . . . . 3 13 . . . . . . . . . . Impact Corruptions . | . . . . . . . . . . . . . . . . . . . Robots Melted 21 | . . 1 . . . 6 11 . . . . . . . 1 . . 2 Combat Hostiles 21 | . . 1 . . . 6 11 . . . . . . . 1 . . 2 Parts Melted 69 | . . 2 . . . 19 24 2 . . . . 5 . 2 . . 15 Heat Transferred 22544 | . 222 1332 . 74 514 5222 6275 481 . . 274 . 1680 . 1520 . . 4950 Parts Sabotaged . | . . . . . . . . . . . . . . . . . . . Parts Stolen . | . . . . . . . . . . . . . . . . . . . Parts Stripped . | . . . . . . . . . . . . . . . . . . . Power Chain Reactions 1 | . . . . . . . 1 . . . . . . . . . . . Alert | -11 -10 -10 -10 -9 -8 -8 -7 -7 -6 -6 -6 -6 -5 -5 -5 -5 -5 -4 ------- Run | Yrd Mat Min Exi Min Mat Gar Fac Sto Fac Gar Fac Gar Fac Ext Cet Arc Hub Fac Maximum Alert Level 4 | . . . . . . 4 3 3 1 1 1 2 2 1 . . 2 3 Low Security (%) 30 | . 100 100 . 100 100 5 . . . . 91 50 . 65 100 100 73 45 Level 1 11 | . . . . . . 10 . . 100 100 8 36 88 34 . . 15 32 Level 2 19 | . . . . . . 27 11 63 . . . 13 11 . . . 10 10 Level 3 30 | . . . . . . 34 88 36 . . . . . . . . . 11 Level 4 7 | . . . . . . 22 . . . . . . . . . . . . Level 5 . | . . . . . . . . . . . . . . . . . . . High Security . | . . . . . . . . . . . . . . . . . . . Max Security . | . . . . . . . . . . . . . . . . . . . Peak Influence 1465 | . 149 112 . . 77 1465 1051 905 354 253 211 470 429 255 64 9 538 765 Initial 768 | . . 42 . . . 46 768 469 354 233 111 140 246 205 38 9 2 258 Average 540 | . 83 63 . . 36 809 847 664 336 242 149 243 349 180 47 9 116 302 Influence Increases 6184 | . 170 243 . . 142 1599 773 746 50 20 230 370 243 164 26 . 593 815 Destroy 0b10 Robot/C 2420 | . 120 180 . . 40 660 440 400 20 20 80 80 80 60 20 . 20 200 Destroy 0b10 Robot/NC 175 | . . . . . 10 10 55 45 . . 10 5 15 5 . . 5 15 Destroy Leader 446 | . 20 40 . . 10 30 96 132 10 . 32 10 2 2 . . 10 52 Allied During Kill 138 | . . . . . . 16 . 84 15 . . 6 . 17 . . . . Trap Triggered on 0b10 30 | . . . . . . . 20 . . . . 10 . . . . . . Successful Hack 253 | . 6 . . . . 30 28 7 5 . 44 14 19 42 . . . 58 Select Force Hacks 180 | . . . . . . . . . . . . . . . . . 150 30 Disable Machine 525 | . . . . . 30 75 60 45 . . . . 30 15 . . 180 90 Anti-Garrison Action 650 | . . . . . . 600 . . . . . 50 . . . . . . Destroy Structure 722 | . 9 23 . . 22 163 74 18 . . 4 45 52 8 6 . 168 130 Partial Spotted 90 | . . . . . . . . . . . . 30 . 15 . . 30 15 Lose Combat Pursuer 555 | . 15 . . . 30 15 . 15 . . 60 120 45 . . . 30 225 Influence Decreases 5435 | . 60 353 . . 70 206 1205 1000 495 141 242 101 294 514 71 15 74 594 Entered New Map 2805 | . . 68 . . . 26 697 564 425 101 102 61 224 214 31 15 7 270 Time Decay 1810 | . 60 275 . . 70 . 458 356 50 . 140 . 60 80 20 . 27 214 Lost Part 470 | . . 10 . . . 160 50 40 . . . . 10 60 20 . 20 100 Lost Ally 350 | . . . . . . 20 . 40 20 40 . 40 . 160 . . 20 10 Squads Dispatched 32 | . 1 1 . . 2 . 7 5 . . 1 . 2 5 . . 5 3 Investigation 16 | . . 1 . . . . 2 . . . 1 . 2 5 . . 3 2 Extermination 3 | . . . . . . . 1 1 . . . . . . . . . 1 Reinforcement 8 | . 1 . . . 2 . 2 3 . . . . . . . . . . Assault 5 | . . . . . . . 2 1 . . . . . . . . 2 . Garrison . | . . . . . . . . . . . . . . . . . . . Intercept . | . . . . . . . . . . . . . . . . . . . Searches Triggered . | . . . . . . . . . . . . . . . . . . . Construction Impeded 2 | . . . . . . . 1 1 . . . . . . . . . . Haulers Reinforced 1 | . . . . . . . . 1 . . . . . . . . . . Active Scanning Responses . | . . . . . . . . . . . . . . . . . . . Cargo Convoy Interrupts . | . . . . . . . . . . . . . . . . . . . Stealth | -11 -10 -10 -10 -9 -8 -8 -7 -7 -6 -6 -6 -6 -5 -5 -5 -5 -5 -4 --------- Run | Yrd Mat Min Exi Min Mat Gar Fac Sto Fac Gar Fac Gar Fac Ext Cet Arc Hub Fac Distress Signals 13 | . 1 . . . 1 . 4 3 . . 1 . . . 1 . 1 1 Communications Jammed 42 | . . . . . . . . . . . . . 2 8 3 . 8 21 Distress Signals 42 | . . . . . . . . . . . . . 2 8 3 . 8 21 Times Spotted 266 | . 8 12 . . 15 30 40 29 1 1 17 14 9 25 4 . 27 34 Peak Tracking Total 25 | . 8 3 . . 8 4 6 6 1 1 4 8 5 20 5 . 25 14 Tactical Retreats 17 | . 1 . . . 2 1 . 1 . . 2 2 1 . . . 1 6 Traps | -11 -10 -10 -10 -9 -8 -8 -7 -7 -6 -6 -6 -6 -5 -5 -5 -5 -5 -4 ------- Run | Yrd Mat Min Exi Min Mat Gar Fac Sto Fac Gar Fac Gar Fac Ext Cet Arc Hub Fac Traps Triggered 15 | . . . . . . 10 1 1 . . . 1 1 . . . . 1 Indirectly . | . . . . . . . . . . . . . . . . . . . Trap Hack Attempts . | . . . . . . . . . . . . . . . . . . . Triggered . | . . . . . . . . . . . . . . . . . . . Disarmed . | . . . . . . . . . . . . . . . . . . . Reprogrammed . | . . . . . . . . . . . . . . . . . . . Reused 3 | . . . . . . . 2 . . . . 1 . . . . . . Traps Extracted . | . . . . . . . . . . . . . . . . . . . Installed 3 | . . . . . . . 2 . . . . 1 . . . . . . Triggered 3 | . . . . . . . 2 . . . . 1 . . . . . . Most Traps Carried 3 | . . . . . . 3 3 1 1 1 1 1 . . . . . . Machines | -11 -10 -10 -10 -9 -8 -8 -7 -7 -6 -6 -6 -6 -5 -5 -5 -5 -5 -4 ---------- Run | Yrd Mat Min Exi Min Mat Gar Fac Sto Fac Gar Fac Gar Fac Ext Cet Arc Hub Fac Machines Disabled 43 | . . . . . 2 12 4 3 . . . 1 2 1 . . 12 6 Max in Single Turn 12 | . . . . . 2 2 1 1 . . . 1 1 1 . . 12 3 Garrison Access 2 | . . . . . . . . . . . . . . . . . 2 . Garrison Relay 6 | . . . . . . 5 . . . . . 1 . . . . . . Phase Generator 1 | . . . . . . 1 . . . . . . . . . . . . Network Hub 4 | . . . . . . . . . . . . . . . . . 4 . Machines Repaired . | . . . . . . . . . . . . . . . . . . . Machines Dismantled . | . . . . . . . . . . . . . . . . . . . Machines Sabotaged 3 | . . . . . . . . . . . . . . . . . 3 . Overloaded Fab Kills . | . . . . . . . . . . . . . . . . . . . Hacking | -11 -10 -10 -10 -9 -8 -8 -7 -7 -6 -6 -6 -6 -5 -5 -5 -5 -5 -4 --------- Run | Yrd Mat Min Exi Min Mat Gar Fac Sto Fac Gar Fac Gar Fac Ext Cet Arc Hub Fac Machines Accessed 43 | . 1 1 2 . 1 2 4 3 2 . 3 2 3 9 . 1 4 5 Terminals 29 | . 1 1 . . . 2 2 3 1 . 1 2 1 9 . . 3 3 Fabricators 2 | . . . . . . . 1 . . . . . 1 . . . . . Repair Stations 2 | . . . . . . . . . . . 1 . 1 . . . . . Recycling Units 3 | . . . . . . . 1 . . . . . . . . . . 2 Scanalyzers . | . . . . . . . . . . . . . . . . . . . Garrison Access 4 | . . . . . 1 . . . 1 . 1 . . . . . 1 . Total Hacks 156 | . 3 4 2 . 1 4 17 8 3 . 7 4 10 30 . 2 7 54 Successful 68 | . 1 . 2 . 1 2 10 2 3 . 4 2 3 8 . 2 4 24 Failed 88 | . 2 4 . . . 2 7 6 . . 3 2 7 22 . . 3 30 Catastrophic 17 | . . . . . . 1 1 . . . 2 . 2 6 . . . 5 Database Lockouts . | . . . . . . . . . . . . . . . . . . . Manual 73 | . 2 4 1 . . 2 9 . 1 . 1 1 3 9 . . 6 34 Terminals 111 | . 3 4 . . . 4 5 8 2 . 2 4 3 30 . . 6 40 Fabricators 12 | . . . . . . . 8 . . . . . 4 . . . . . Repair Stations 6 | . . . . . . . . . . . 3 . 3 . . . . . Recycling Units 18 | . . . . . . . 4 . . . . . . . . . . 14 Scanalyzers . | . . . . . . . . . . . . . . . . . . . Garrison Access 5 | . . . . . 1 . . . 1 . 2 . . . . . 1 . Terminal Hacks 30 | . 1 . 2 . . 2 3 2 1 . . 2 . 5 . 2 . 10 Record 3 | . . . 1 . . . . . . . . . . . . 2 . . Part Schematic 1 | . . . . . . . . . . . . . . . . . . 1 Prototype ID Bank 1 | . 1 . . . . . . . . . . . . . . . . . Open Door 3 | . . . . . . . . 2 . . . . . 1 . . . . Branch Access Points 3 | . . . . . . . 1 . 1 . . . . . . . . 1 Emergency Access Points 5 | . . . . . . 1 . . . . . 1 . . . . . 3 Terminal Index 3 | . . . . . . . . . . . . . . 1 . . . 2 Alert Level 2 | . . . . . . . 1 . . . . . . . . . . 1 Locate Traps 2 | . . . . . . . 1 . . . . . . 1 . . . . Registered Prototypes 2 | . . . . . . . . . . . . . . 1 . . . 1 Zone Layout 2 | . . . . . . . . . . . . . . 1 . . . 1 Patrol Navigation 1 | . . . . . . . . . . . . 1 . . . . . . Security Stations 1 | . . . . . . 1 . . . . . . . . . . . . Proto ID Catalog 1 | . . . 1 . . . . . . . . . . . . . . . Fabricator Hacks 3 | . . . . . . . 2 . . . . . 1 . . . . . Network Status 1 | . . . . . . . 1 . . . . . . . . . . . Build 2 | . . . . . . . 1 . . . . . 1 . . . . . Repair Station Hacks 4 | . . . . . . . . . . . 2 . 2 . . . . . Scan Component 2 | . . . . . . . . . . . 1 . 1 . . . . . Repair 2 | . . . . . . . . . . . 1 . 1 . . . . . Recycling Unit Hacks 6 | . . . . . . . 1 . . . . . . . . . . 5 Recycle Component 1 | . . . . . . . . . . . . . . . . . . 1 Process 1 | . . . . . . . . . . . . . . . . . . 1 Report Inventory 2 | . . . . . . . 1 . . . . . . . . . . 1 Retrieve Components 2 | . . . . . . . . . . . . . . . . . . 2 Scanalyzer . | . . . . . . . . . . . . . . . . . . . Garrison Access Hacks 4 | . . . . . 1 . . . 1 . 1 . . . . . 1 . Unlock Access 3 | . . . . . 1 . . . 1 . 1 . . . . . . . Seal Access 1 | . . . . . . . . . . . . . . . . . 1 . Unauthorized Hacks 21 | . . . . . . . 4 . 1 . 1 . . 3 . . 3 9 Terminals 15 | . . . . . . . . . 1 . . . . 3 . . 3 8 Botnet 7 | . . . . . . . . . 1 . . . . 3 . . . 3 Disrupt 2 | . . . . . . . . . . . . . . . . . . 2 Operators 1 | . . . . . . . . . . . . . . . . . . 1 Skim 2 | . . . . . . . . . . . . . . . . . . 2 Sabotage 3 | . . . . . . . . . . . . . . . . . 3 . Fabricators 4 | . . . . . . . 4 . . . . . . . . . . . Prioritize 1 | . . . . . . . 1 . . . . . . . . . . . Liberate 1 | . . . . . . . 1 . . . . . . . . . . . Fabnet 1 | . . . . . . . 1 . . . . . . . . . . . Haulers 1 | . . . . . . . 1 . . . . . . . . . . . Repair Stations . | . . . . . . . . . . . . . . . . . . . Recycling Units 1 | . . . . . . . . . . . . . . . . . . 1 Tunnel 1 | . . . . . . . . . . . . . . . . . . 1 Scanalyzers . | . . . . . . . . . . . . . . . . . . . Garrison Access 1 | . . . . . . . . . . . 1 . . . . . . . Reprogram 1 | . . . . . . . . . . . 1 . . . . . . . Data Cores Recovered 1 | . . . . . . . 1 . . . . . . . . . . . Used . | . . . . . . . . . . . . . . . . . . . Hacking Detections 32 | . 1 1 . . . 2 4 2 1 . 3 2 3 8 . . 1 4 Full Trace Events 11 | . . 1 . . . . 1 . . . 1 . 2 5 . . . 1 Feedback Events . | . . . . . . . . . . . . . . . . . . . Feedback Blocked . | . . . . . . . . . . . . . . . . . . . Robot Schematics Acquired . | . . . . . . . . . . . . . . . . . . . Robots Built . | . . . . . . . . . . . . . . . . . . . Authchips . | . . . . . . . . . . . . . . . . . . . Time 169 | . . . . . . . . . . . . . 169 . . . . . Total Robot Build Rating . | . . . . . . . . . . . . . . . . . . . Part Schematics Acquired 1 | . . . . . . . . . . . . . . . . . . 1 Parts Built 2 | . . . . . . . 2 . . . . . . . . . . . Authchips . | . . . . . . . . . . . . . . . . . . . Time 84 | . . . . . . . 84 . . . . . . . . . . . Total Part Build Rating 8 | . . . . . . . 8 . . . . . . . . . . . Part Studies Acquired . | . . . . . . . . . . . . . . . . . . . Parts Repaired 2 | . . . . . . . . . . . 1 . 1 . . . . . Time 79 | . . . . . . . . . . . 35 . 44 . . . . . Parts Recycled 1 | . . . . . . . . . . . . . . . . . . 1 Recycled Matter 21 | . . . . . . . . . . . . . . . . . . 21 Retrieved Matter . | . . . . . . . . . . . . . . . . . . . Retrieved Components 3 | . . . . . . . . . . . . . . . . . . 3 Parts Scanalyzed . | . . . . . . . . . . . . . . . . . . . Part Schematics Acquired . | . . . . . . . . . . . . . . . . . . . Parts Damaged . | . . . . . . . . . . . . . . . . . . . Bothacking | -11 -10 -10 -10 -9 -8 -8 -7 -7 -6 -6 -6 -6 -5 -5 -5 -5 -5 -4 ------------ Run | Yrd Mat Min Exi Min Mat Gar Fac Sto Fac Gar Fac Gar Fac Ext Cet Arc Hub Fac Used RIF Installer 2 | . . . . . . 1 . . . 1 . . . . . . . . Signal Jammer 1 | . . . . . . . . . . 1 . . . . . . . . Robots Hacked 13 | . . . . . . . 2 . . . 5 1 . 2 . . 2 1 Non-combat 5 | . . . . . . . 1 . . . . . . 2 . . 1 1 Combat 8 | . . . . . . . 1 . . . 5 1 . . . . 1 . Robot Hacks Applied 14 | . . . . . . . 3 . . . 5 . . 4 . . 1 1 parse_system 1 | . . . . . . . . . . . . . . 1 . . . . find_chute 1 | . . . . . . . 1 . . . . . . . . . . . hold_bot 1 | . . . . . . . 1 . . . . . . . . . . . check_alert 1 | . . . . . . . . . . . . . . 1 . . . . locate_traps 1 | . . . . . . . . . . . . . . 1 . . . . block_reporting 1 | . . . . . . . . . . . . . . 1 . . . . find_shortcuts 1 | . . . . . . . . . . . 1 . . . . . . . overload_power 1 | . . . . . . . . . . . 1 . . . . . . . amplify_resonance 2 | . . . . . . . . . . . 2 . . . . . . . reboot_system 1 | . . . . . . . . . . . 1 . . . . . . . overwrite_iff 1 | . . . . . . . 1 . . . . . . . . . . . formatsys_high 2 | . . . . . . . . . . . . . . . . . 1 1 Relay Couplers Released 23 | . . . . . . 19 . . . . . 4 . . . . . . Machine Destruction 23 | . . . . . . 19 . . . . . 4 . . . . . . Attached 6 | . . . . . . . 3 1 . . . . 1 1 . . . . Fabnet Peak Effective % 3 | . . . . . . . . . 3 3 3 3 1 1 1 1 1 . Autooverrided 2 | . . . . . . . . . . . . 1 . . . . 1 . Robots Rewired 7 | . . . . . . . . . . . . . . 7 . . . . Allies Hacked 1 | . . . . . . . . 1 . . . . . . . . . . Hacks Repelled . | . . . . . . . . . . . . . . . . . . . Allies | -11 -10 -10 -10 -9 -8 -8 -7 -7 -6 -6 -6 -6 -5 -5 -5 -5 -5 -4 -------- Run | Yrd Mat Min Exi Min Mat Gar Fac Sto Fac Gar Fac Gar Fac Ext Cet Arc Hub Fac Total Allies 26 | . . . . . . 1 1 11 . . . 2 . 8 . . 2 1 Largest Group 11 | . . . . . . 1 1 11 8 7 . 2 . 6 . . 1 1 Highest-Rated Group 216 | . . . . . . 31 16 216 138 122 . 107 . 149 . . 26 10 Highest-Rated Ally 95 | . . . . . . 31 16 46 29 29 . 95 . 39 . . 26 10 Total Orders . | . . . . . . . . . . . . . . . . . . . Ally Attacks 132 | . . . . . . 15 6 44 16 12 . 9 . 28 . . 2 . Total Damage 1762 | . . . . . . 212 67 510 196 123 . 160 . 466 . . 28 . Kills 12 | . . . . . . 3 . 3 1 1 . 3 . 1 . . . . Allies Corrupted . | . . . . . . . . . . . . . . . . . . . Allies Melted . | . . . . . . . . . . . . . . . . . . . Intel | -11 -10 -10 -10 -9 -8 -8 -7 -7 -6 -6 -6 -6 -5 -5 -5 -5 -5 -4 ------- Run | Yrd Mat Min Exi Min Mat Gar Fac Sto Fac Gar Fac Gar Fac Ext Cet Arc Hub Fac Active Infowar (turns) 287 | . 46 84 . . 4 150 . . . . 2 . . . . . 1 . Sensors 2 | . . . . . . . . . . . 2 . . . . . . . Terrain 154 | . . . . . 4 150 . . . . . . . . . . . . Seismic 130 | . 46 84 . . . . . . . . . . . . . . . . ECM 1 | . . . . . . . . . . . . . . . . . 1 . Robot Analysis Total . | . . . . . . . . . . . . . . . . . . . Derelict Logs Recovered 2 | . . 2 . . . . . . . . . . . . . . . . Drone Launches . | . . . . . . . . . . . . . . . . . . . Drone Recoveries . | . . . . . . . . . . . . . . . . . . . Exploration | -11 -10 -10 -10 -9 -8 -8 -7 -7 -6 -6 -6 -6 -5 -5 -5 -5 -5 -4 ------------- Run | Yrd Mat Min Exi Min Mat Gar Fac Sto Fac Gar Fac Gar Fac Ext Cet Arc Hub Fac Turns Passed 7147 | . 189 680 271 161 208 2224 1142 800 117 33 298 151 127 165 48 13 73 447 Spaces Moved 6024 | 1 135 478 225 129 138 1442 507 362 95 104 365 297 313 392 98 41 203 699 Core 442 | . . . . . . . . . . . . . . . . . . 442 Treads 544 | . . . . . . 128 139 277 . . . . . . . . . . Legs 2506 | 1 135 478 225 129 107 978 368 85 . . . . . . . . . . Wheels 367 | . . . . . 31 336 . . . . . . . . . . . . Hover 164 | . . . . . . . . . . . . . . . . . . 164 Flight 2001 | . . . . . . . . . 95 104 365 297 313 392 98 41 203 93 Fastest Speed 5 | 120 120 120 120 120 90 90 126 127 20 20 20 5 20 5 23 29 26 40 Average Speed 87 | 120 120 120 120 120 94 126 165 152 20 20 20 20 21 19 25 29 28 54 Slowest Speed 270 | 120 120 120 120 120 180 240 270 240 20 20 20 88 23 23 29 29 29 100 Overloaded Moves 134 | . . . . . . . . . . . . 35 . 40 . . 59 . Propulsion Burnouts 1 | . . . . . . . . . . . . . . 1 . . . . Robots Hopped 43 | . . . . . . . . . . . 4 . 6 17 3 . 13 . Potential Cave-ins 3 | . . . . . . . . . . . . . . . . . . 3 Cave-ins Triggered . | . . . . . . . . . . . . . . . . . . . Exploration Rate (%) 38 | 2 31 96 59 34 12 90 17 60 3 17 12 48 10 67 57 68 27 19 Regions Visited 18 Branch Regions 8 Pre-discovered Areas 2 | . . . 1 . . . . . . . . . . . . . . 1 Known Exits Taken 4 | . . . . . 1 . 1 . 1 . 1 . . . . . . . Unknown Exits Taken 11 | 1 1 1 1 1 . . . 1 . . . . 1 1 1 1 1 . Scrap Searched 3 | . . 2 . 1 . . . . . . . . . . . . . . Spaces Dug 1 | . . . . . . . . . . . . 1 . . . . . . Terrain Destroyed 614 | . 8 34 . . 21 179 82 17 . . 2 9 32 6 . . 153 71 Melee . | . . . . . . . . . . . . . . . . . . . Projectile 24 | . . . . . . . 4 . . . 2 9 3 6 . . . . AOE 590 | . 8 34 . . 21 179 78 17 . . . . 29 . . . 153 71 Terrain Rammed . | . . . . . . . . . . . . . . . . . . . Walls Destroyed . | . . . . . . . . . . . . . . . . . . . Machines Disabled . | . . . . . . . . . . . . . . . . . . . Actions | -11 -10 -10 -10 -9 -8 -8 -7 -7 -6 -6 -6 -6 -5 -5 -5 -5 -5 -4 --------- Run | Yrd Mat Min Exi Min Mat Gar Fac Sto Fac Gar Fac Gar Fac Ext Cet Arc Hub Fac Total 7307 | . 147 544 226 131 196 1707 714 506 190 116 553 356 357 436 117 41 206 764 Wait 561 | . . 18 . 1 31 33 83 48 73 5 152 3 35 22 13 1 1 42 Move 5931 | . 134 477 224 128 138 1441 506 361 94 103 356 296 300 363 91 40 180 699 Hop 33 | . . . . . . . . . . . 4 . 6 11 3 . 9 . Pick Up 48 | . 1 2 1 . 1 16 6 9 . . 4 4 2 . . . 2 . Fast Attach 61 | . 1 . . . 4 22 11 5 2 3 2 2 2 . 1 . 1 5 Attach 55 | . . 1 . . 2 7 11 4 7 . 3 4 4 3 2 . 3 4 Detach 42 | . . . . . 1 5 9 . 3 5 2 4 3 2 1 . 3 4 Swap 107 | . 3 11 . . 5 30 28 16 3 . 4 1 . 5 . . 1 . Drop 93 | . . 10 1 . 4 31 11 14 6 . 3 6 . . 4 . 3 . Fire 286 | . 8 24 . 2 9 70 41 46 2 . 23 17 5 30 2 . 2 5 Melee 3 | . . . . . . . 3 . . . . . . . . . . . Ram 12 | . . . . . . . . . . . . 8 . . . . . 4 Kick 4 | . . 1 . . 1 1 1 . . . . . . . . . . . Crush 4 | . . . . . . . 2 2 . . . . . . . . . . Escape Stasis 59 | . . . . . . 50 . . . . . 9 . . . . . . Rewire 5 | . . . . . . 1 . 1 . . . 1 . . . . 1 1 Trap 3 | . . . . . . . 2 . . . . 1 . . . . . . Miscellaneous . | . . . . . . . . . . . . . . . . . . . Route ------- -11/Scrapyard -10/Materials -10/Mines (discovered 3 exits: [*Mat x2] / *Exi) -10/Exiles -9/Mines -8/Materials (discovered 3 exits: Fac x2 / Gar) -8/Garrison (discovered 3 exits: *Fac x3) -7/Factory (discovered 5 exits: *Fac / *Sto x2 / Low x2) -7/Storage -6/Factory (discovered 3 exits: Low x2 / Gar) -6/Garrison -6/Factory -6/Garrison -5/Factory -5/Extension (discovered 2 exits: *Fac / [*Cet]) -5/Cetus -5/Archives -5/Hub_04(d) -4/Factory (discovered 2 exits: Upp x2) History --------- Turn | Location | Event 1 | -11/Scrapyard | Discovered new exit (range 0) 1 | -11/Scrapyard | Entered Materials 92 | -10/Materials | Discovered new exit (range 15) 190 | -10/Materials | Entered Mines 249 | -10/Mines | Joined a pair of Derelicts in attacking an 0b10 outpost 409 | -10/Mines | Learned Materials trap positions 422 | -10/Mines | Discovered new exit (range 14) 522 | -10/Mines | Discovered new exit (range 9) 565 | -10/Mines | Build established: Scavenger-Mutant 666 | -10/Mines | Learned 8 Materials zone layouts 691 | -10/Mines | Core integrity fell below 50% 692 | -10/Mines | Destroyed YI-UF0 865 | -10/Mines | Deemed a non-threat by the Exiles lab entrance 865 | -10/Mines | Discovered new exit (range 5) 870 | -10/Mines | Entered Exiles 898 | -10/Exiles | Met 8R-AWN 928 | -10/Exiles | Met EX-HEX 960 | -10/Exiles | Met EX-BIN 980 | -10/Exiles | Aligned with FarCom system 981 | -10/Exiles | Given EX-Vault access code 1010 | -10/Exiles | Opened EX-Vault 1017 | -10/Exiles | Found Firepult 1042 | -10/Exiles | Warned to stay clear of 0b10 Research branches 1082 | -10/Exiles | Met EX-DEC 1087 | -10/Exiles | Learned location of Zion (-7) 1122 | -10/Exiles | Discovered new exit (range 14) 1141 | -10/Exiles | Left Exiles lab with Firepult 1141 | -10/Exiles | Entered Mines 1237 | -9/Mines | Discovered new exit (range 15) 1302 | -9/Mines | Entered Materials 1302 | -8/Materials | Evolved 4 slots: Propulsion x1, Utility x2, Weapon x1 1303 | -8/Materials | Identified exit to Factory 1304 | -8/Materials | Loaded intel: 20 trap records 1510 | -8/Materials | Identified exit to Garrison 1510 | -8/Materials | Entered Garrison 1556 | -8/Garrison | Triggered checkpoint 1606 | -8/Garrison | Garrison Relay disabled 1623 | -8/Garrison | Garrison Relay disabled 1721 | -8/Garrison | Build established: Skirmisher 1767 | -8/Garrison | Rescued a captive Derelict 1769 | -8/Garrison | Rescued a captive Derelict 1908 | -8/Garrison | Triggered checkpoint 1982 | -8/Garrison | Triggered checkpoint 2029 | -8/Garrison | Garrison Relay disabled 2074 | -8/Garrison | Discovered exit to Factory (range 11) 2082 | -8/Garrison | Build established: Scavenger-Skirmisher 2128 | -8/Garrison | Triggered checkpoint 2289 | -8/Garrison | Core integrity fell below 50% 2315 | -8/Garrison | Lost 4 parts (1n1u2w) 2399 | -8/Garrison | Triggered checkpoint 2620 | -8/Garrison | Triggered checkpoint 2623 | -8/Garrison | Garrison Relay disabled 2738 | -8/Garrison | Triggered checkpoint 2776 | -8/Garrison | Lost 3 parts (1p2w) 2856 | -8/Garrison | Discovered exit to Factory (range 15) 2968 | -8/Garrison | Triggered checkpoint 2968 | -8/Garrison | Discovered exit to Factory (range 14) 3048 | -8/Garrison | Triggered checkpoint 3073 | -8/Garrison | Build established: Scavenger-Mutant 3080 | -8/Garrison | Learned Factory security intel 3230 | -8/Garrison | Phase Generator disabled 3232 | -8/Garrison | Spotted B-75 Beast 3249 | -8/Garrison | Core integrity fell below 20% 3252 | -8/Garrison | Triggered checkpoint 3252 | -8/Garrison | Destroyed B-75 Beast 3290 | -8/Garrison | Lost 4 parts (1p2n1u) 3535 | -8/Garrison | Build established: Scavenger-Skirmisher 3661 | -8/Garrison | Installed Relay Interface Framework 3734 | -8/Garrison | Entered Factory 3734 | -7/Factory | Evolved 2 slots: Propulsion x1, Utility x1 3899 | -7/Factory | Fabricated Imp. Titanium Leg (x2) 3997 | -7/Factory | Identified exit to Storage 3997 | -7/Factory | Identified exit to Lower Caves 4083 | -7/Factory | Discovered new exit (range 16) 4134 | -7/Factory | First assault squad dispatched 4162 | -7/Factory | System corruption reached 10% 4195 | -7/Factory | Lost 4 parts (1n1u2w) 4876 | -7/Factory | Entered Storage 5045 | -7/Storage | Build established: Skirmisher 5304 | -7/Storage | System corruption reached 30% 5418 | -7/Storage | Assisted by bots powering up and referring to "LRC-V3" 5552 | -7/Storage | Discovered new exit (range 12) 5589 | -7/Storage | Botcube activated 5676 | -7/Storage | First assault squad dispatched 5676 | -7/Storage | Entered Factory 5676 | -6/Factory | Accompanied by 8 allies 5676 | -6/Factory | Evolved 2 slots: Propulsion x2 5737 | -6/Factory | Identified exit to Lower Caves 5741 | -6/Factory | Identified exit to Garrison 5793 | -6/Factory | Entered Garrison 5793 | -6/Garrison | Accompanied by 7 allies 5818 | -6/Garrison | Expanded RIF knowledge: Signal Jamming 5824 | -6/Garrison | Discovered new exit (range 5) 5826 | -6/Garrison | Entered Factory 5867 | -6/Factory | Repaired Enh. Nuclear Core 6096 | -6/Factory | Identified exit to Garrison 6124 | -6/Factory | Entered Garrison 6193 | -6/Garrison | Triggered checkpoint 6193 | -6/Garrison | Triggered checkpoint 6201 | -6/Garrison | Found embedded Infiltrators 6218 | -6/Garrison | Spotted B-75 Beast 6249 | -6/Garrison | Discovered new exit (range 10) 6264 | -6/Garrison | Triggered checkpoint 6266 | -6/Garrison | Garrison Relay disabled 6275 | -6/Garrison | Entered Factory 6275 | -5/Factory | Evolved 2 slots: Utility x2 6327 | -5/Factory | Repaired Broken Cld. VTOL Module? 6399 | -5/Factory | Discovered new exit (range 16) 6402 | -5/Factory | Entered Extension 6407 | -5/Extension | Disrupted transfer network 6418 | -5/Extension | Rescued a captive Derelict 6490 | -5/Extension | Lost 4 allies 6513 | -5/Extension | Spotted B-75 Beast 6513 | -5/Extension | Spotted B-75 Beast 6554 | -5/Extension | Lost 3 allies 6566 | -5/Extension | Discovered new exit (range 9) 6566 | -5/Extension | Discovered new exit (range 6) 6567 | -5/Extension | Entered Cetus 6571 | -5/Cetus | Spotted Cetus Guard 6572 | -5/Cetus | Spotted Cetus Guard 6574 | -5/Cetus | Destroyed Cetus Guard 6577 | -5/Cetus | Spotted Cetus Guard 6595 | -5/Cetus | Lost 5 parts (1p2u2w) 6610 | -5/Cetus | Discovered new exit (range 16) 6615 | -5/Cetus | Entered Archives 6619 | -5/Archives | Met Zhirov 6622 | -5/Archives | Read partially decrypted archive contents 6623 | -5/Archives | Discovered new exit (range 15) 6625 | -5/Archives | Reinforcements dispatched to Archives 6628 | -5/Archives | Entered Hub_04(d) 6682 | -5/Hub_04(d) | Network Hub disabled 6693 | -5/Hub_04(d) | Network Hub disabled 6693 | -5/Hub_04(d) | Network Hub disabled 6695 | -5/Hub_04(d) | Network Hub disabled 6695 | -5/Hub_04(d) | Spotted Lightning 6699 | -5/Hub_04(d) | Core integrity fell below 50% 6699 | -5/Hub_04(d) | Discovered new exit (range 11) 6701 | -5/Hub_04(d) | Spotted B-75 Beast 6701 | -5/Hub_04(d) | Entered Factory 6701 | -4/Factory | Evolved 2 slots: Power x1, Propulsion x1 6722 | -4/Factory | Identified exit to Upper Caves 6823 | -4/Factory | Lost 3 parts (1p2n) 7013 | -4/Factory | Lost 3 parts (2n1u) 7023 | -4/Factory | Core integrity fell below 50% 7079 | -4/Factory | Destroyed 9 combat bots 7093 | -4/Factory | Core integrity fell below 20% 7148 | -4/Factory | Destroyed by P-70 Sage with High-powered Shock Rifle Last Messages --------------- 07100_ Acquired 9 matter. 07101_ H-77 Assassin heat short circuits Myomer Leg. 07101_ Acquired 7 matter. 07101_ Penetrated by Slug. 07102_ Overheating: Energy bleed (-5). 07103_ H-77 Assassin heat spikes uncontrollably. 07104_ H-77 Assassin heat damages Imp. Targeting Computer, Broken Myomer Leg. 07104_ Penetrated by Slug. 07104_ Slug penetrates U-05 Engineer. 07107_ ALERT: Cargo convoy en route, clear transfer corridor. 07107_ Connecting with Recycling Unit... >>Force(Tunnel) DISCOVERED[-3/Armory] 07107_ ALERT: Suspicious activity at Recycling Unit F002. Dispatching Investigation squad. 07110_ Overheating: Relay Coupler [Hunter] damaged (-1). 07110_ Overheating: Imp. Signal Interpreter damaged (-3). 07127_ ALERT: Potential suspicious activity detected, Programmers report to Factory Zone 1A. Map ----- +----------------------------------------------------+ | ?????????????????????????????????????????????????? | | ?????????????????????????????????????????????????? | | ?????????????????????????????????????????????????? | | ?????????????????????????????????????????????????? | | ?????????????????????????????????????????????????? | | ?????????????????????????????????????????????????? | | ?????????????????????????????????????????????????? | | ?????????????????????????????????????????????????? | | ?????????????????????????????????????????????????? | | ?????????????????????????????????????????????????? | | ????????????????????????? ???????????????????????? | | ????????????????????????? ???????????????????????? | | ????????????????????????? ???????????????????????? | | ????????????????????????? ???????????????????????? | | ????????????????????????? ???????????????????????? | | ????????????????????????" "??????????????????????? | | ????????????????????????" "????????#?????????????? | | ????????????????????????" "??????? +?????????????? | | ????????????????????????h ?????? #?????????????? | | ????????#################h###### #?????????????? | | ????????# +?????????????? | | ????????# p #?????????????? | | ????????# +?????????????? | | ????????# #?????????????? | | ????????# #?????????????? | | ????????# #########/#@#########??????????????? | | ????????# #????# p #????????????????? | | ????????# #????# """""" #????????????????? | | ????????# #????# """""" #????????????????? | | ????????# #????# """""" #????????????????? | | ????????# #????# """""" #????????????????? | | ???????# #????# ????????????????????? | | "??#????# #????# ??????????????????????? | | " #????# #????# ???????????????????????? | | "" #????# #????# ????????????????????????? | | "" ###### #????# ???????????????????????? | | "" + #????# ????????????????????????? | | ###### #????# ????????????????????????? | | ??????# #????######????????????????????????? | | ????????# #??????????????????????????????????? | | ######### #??????????????????????????????????? | | #??????????????????????????????????? | | #??????????????????????????????????? | | #??????????????????????????????????? | | #??????????????????????????????????? | | #??????????????????????????????????? | | ######## T#####??????????????????????????????????? | | ???????####??????????????????????????????????????? | | ?????????????????????????????????????????????????? | | ?????????????????????????????????????????????????? | +----------------------------------------------------+ Best States ------------- Heat Dissipation 65 Coolant Potential 65 Energy Generation 19 Energy Capacity 500 Matter Stores 500 Matter Capacity 500 Sight Range 16 Terrain Scan Range 16 Terrain Scan Density 110 Additional Mass Support 12 Armor Coverage 450 Resistance: KI 30 Propulsion Shielding 66 Melee Speed Boost 20 Evasion (%) 66 Armor Integrity Analysis 40 Recoil Reduction 4 Particle Charging 15 Salvage Targeting 3 Offensive Hacking 10 Defensive Hacking 10 Relay Coupler Types 2 Relay Coupler Value 49 Item Schematics ----------------- Cld. VTOL Module | -4/Factory | Hacked Robot Schematics ------------------ None Fabricated ------------ Imp. Titanium Leg | x2 | -7/Factory | Preloaded Repaired ---------- Enh. Nuclear Core | 30% | -6/Factory Cld. VTOL Module | 99% | -5/Factory | Broken Studied --------- None Alien Tech Used ----------------- None Achievements -------------- 404 Challenges ------------ None Game ------ Seed HybridClaymoresDrivehammer Manual? 0 Play Time 01:02:03 Cumulative 1240.0 hours Start 2026.01.03 @ 19:33:08 End 2026.01.04 @ 13:37:27 Sessions 3 Manual Loads 0 Difficulty Rogue Special Mode None Game No. 1524 Rogue 1240 Adventurer 124 Explorer 160 Win Type - Total 59 Types 45/0/8/4/1/0/0/1/0/0 Lore% 93 Gallery% 86 Achievement% 67 Wizard Run 0 Options --------- Layout 0 ASCII 0 Keyboard 1 Movement Numpad Keybinds 0 Fullscreen 2 Font 18/X11 Map View 76x50 Zoom Use 0% Tactical HUD 1 Map Filters NONE Filters NONE Steam 1 RUN: efcc04f2-bea8-415f-abfa-58ce1f789ead